Workbook

Sheet Sommaire budget cumulé
A2: Budget 2006 réel vs Budget cumulé sur l'exercice en cours
A4: N° de compte | B4: Compte | C4: Réel cumulé sur l'exercice en cours | D4: Budget cumulé sur l'exercice en cours | E4: Budget restant € | F4: % budget restant
A5: 1000 | B5: Bureau | C5: ='Frais mensuels'!O5 -> 100.00 € | D5: 50,000.00 € | E5: =SUM(D5-C5) -> 49,900.00 € | F5: =SUM(Tableau1[Budget restant €]/Tableau1[Budget cumulé sur l''exercice en cours]) -> 99.80%
A6: 2000 | B6: Magasin | C6: ='Frais mensuels'!O6 -> 905.27 € | D6: 75,000.00 € | E6: =SUM(D6-C6) -> 74,094.73 € | F6: =SUM(Tableau1[Budget restant €]/Tableau1[Budget cumulé sur l''exercice en cours]) -> 98.79%
A7: 3000 | B7: Dotation en personnel | C7: ='Frais mensuels'!O7 -> 0 | D7: 100,000.00 € | E7: =SUM(D7-C7) -> 100,000.00 € | F7: =SUM(Tableau1[Budget restant €]/Tableau1[Budget cumulé sur l''exercice en cours]) -> 100.00%
A8: 4000 | B8: Équipement | C8: ='Frais mensuels'!O8 -> 1,854.00 € | D8: 25,000.00 € | E8: =SUM(D8-C8) -> 23,146.00 € | F8: =SUM(Tableau1[Budget restant €]/Tableau1[Budget cumulé sur l''exercice en cours]) -> 92.58%
A9: 5000 | B9: Autre | C9: ='Frais mensuels'!O9 -> 35.60 € | D9: 50,000.00 € | E9: =SUM(D9-C9) -> 49,964.40 € | F9: =SUM(Tableau1[Budget restant €]/Tableau1[Budget cumulé sur l''exercice en cours]) -> 99.93%
A10: Total | C10: =SUBTOTAL(109,Tableau1[Réel cumulé sur l''exercice en cours]) -> 2,894.87 € | D10: =SUBTOTAL(109,Tableau1[Budget cumulé sur l''exercice en cours]) -> 300,000.00 € | E10: =SUBTOTAL(109,Tableau1[Budget restant €]) -> 297,105.13 € | F10: =Tableau1[[#Totals],[Budget restant €]]/Tableau1[[#Totals],[Budget cumulé sur l''exercice en cours]] -> 99.04%

Sheet Frais mensuels
A2: Frais mensuels 2006
A4: N° de compte | B4: Compte | C4: Jan-06 | D4: Fév-06 | E4: Mar-06 | F4: Avr-06 | G4: Mai-06 | H4: Juin-06 | I4: Juil-06 | J4: Août-06 | K4: Sep-06 | L4: Oct-06 | M4: Nov-06 | N4: Déc-06 | O4: Total 2006
A5: 1000 | B5: Bureau | C5: =SUMIF('1000-Bureau'!$J:$J,"="&(TEXT(C$4,"mmm-aa")),'1000-Bureau'!$E:$E) -> 100.00 € | D5: =SUMIF('1000-Bureau'!$J:$J,"="&(TEXT(D$4,"mmm-aa")),'1000-Bureau'!$E:$E) -> 0 | E5: =SUMIF('1000-Bureau'!$J:$J,"="&(TEXT(E$4,"mmm-aa")),'1000-Bureau'!$E:$E) -> 0 | F5: =SUMIF('1000-Bureau'!$J:$J,"="&(TEXT(F$4,"mmm-aa")),'1000-Bureau'!$E:$E) -> 0 | G5: =SUMIF('1000-Bureau'!$J:$J,"="&(TEXT(G$4,"mmm-aa")),'1000-Bureau'!$E:$E) -> 0 | H5: =SUMIF('1000-Bureau'!$J:$J,"="&(TEXT(H$4,"mmm-aa")),'1000-Bureau'!$E:$E) -> 0 | I5: =SUMIF('1000-Bureau'!$J:$J,"="&(TEXT(I$4,"mmm-aa")),'1000-Bureau'!$E:$E) -> 0 | J5: =SUMIF('1000-Bureau'!$J:$J,"="&(TEXT(J$4,"mmm-aa")),'1000-Bureau'!$E:$E) -> 0 | K5: =SUMIF('1000-Bureau'!$J:$J,"="&(TEXT(K$4,"mmm-aa")),'1000-Bureau'!$E:$E) -> 0 | L5: =SUMIF('1000-Bureau'!$J:$J,"="&(TEXT(L$4,"mmm-aa")),'1000-Bureau'!$E:$E) -> 0 | M5: =SUMIF('1000-Bureau'!$J:$J,"="&(TEXT(M$4,"mmm-aa")),'1000-Bureau'!$E:$E) -> 0 | N5: =SUMIF('1000-Bureau'!$J:$J,"="&(TEXT(N$4,"mmm-aa")),'1000-Bureau'!$E:$E) -> 0 | O5: =SUM(Tableau2[Jan-06]+Tableau2[Fév-06]+Tableau2[Mar-06]+Tableau2[Avr-06]+Tableau2[Mai-06]+Tableau2[Juin-06]+Tableau2[Juil-06]+Tableau2[Août-06]+Tableau2[Sep-06]+Tableau2[Oct-06]+Tableau2[Nov-06]+Tableau2[Déc-06]) -> 100.00 €
A6: 2000 | B6: Magasin | C6: =SUMIF('2000-Magasin'!$J:$J,"="&(TEXT(C$4,"mmm-aa")),'2000-Magasin'!$E:$E) -> 905.27 € | D6: =SUMIF('2000-Magasin'!$J:$J,"="&(TEXT(D$4,"mmm-aa")),'2000-Magasin'!$E:$E) -> 0 | E6: =SUMIF('2000-Magasin'!$J:$J,"="&(TEXT(E$4,"mmm-aa")),'2000-Magasin'!$E:$E) -> 0 | F6: =SUMIF('2000-Magasin'!$J:$J,"="&(TEXT(F$4,"mmm-aa")),'2000-Magasin'!$E:$E) -> 0 | G6: =SUMIF('2000-Magasin'!$J:$J,"="&(TEXT(G$4,"mmm-aa")),'2000-Magasin'!$E:$E) -> 0 | H6: =SUMIF('2000-Magasin'!$J:$J,"="&(TEXT(H$4,"mmm-aa")),'2000-Magasin'!$E:$E) -> 0 | I6: =SUMIF('2000-Magasin'!$J:$J,"="&(TEXT(I$4,"mmm-aa")),'2000-Magasin'!$E:$E) -> 0 | J6: =SUMIF('2000-Magasin'!$J:$J,"="&(TEXT(J$4,"mmm-aa")),'2000-Magasin'!$E:$E) -> 0 | K6: =SUMIF('2000-Magasin'!$J:$J,"="&(TEXT(K$4,"mmm-aa")),'2000-Magasin'!$E:$E) -> 0 | L6: =SUMIF('2000-Magasin'!$J:$J,"="&(TEXT(L$4,"mmm-aa")),'2000-Magasin'!$E:$E) -> 0 | M6: =SUMIF('2000-Magasin'!$J:$J,"="&(TEXT(M$4,"mmm-aa")),'2000-Magasin'!$E:$E) -> 0 | N6: =SUMIF('2000-Magasin'!$J:$J,"="&(TEXT(N$4,"mmm-aa")),'2000-Magasin'!$E:$E) -> 0 | O6: =SUM(Tableau2[Jan-06]+Tableau2[Fév-06]+Tableau2[Mar-06]+Tableau2[Avr-06]+Tableau2[Mai-06]+Tableau2[Juin-06]+Tableau2[Juil-06]+Tableau2[Août-06]+Tableau2[Sep-06]+Tableau2[Oct-06]+Tableau2[Nov-06]+Tableau2[Déc-06]) -> 905.27 €
A7: 3000 | B7: Dotation en personnel | C7: =SUMIF('3000-Dotation en personnel'!$J:$J,"="&(TEXT(C$4,"mmm-aa")),'3000-Dotation en personnel'!$E:$E) -> 0 | D7: =SUMIF('3000-Dotation en personnel'!$J:$J,"="&(TEXT(D$4,"mmm-aa")),'3000-Dotation en personnel'!$E:$E) -> 0 | E7: =SUMIF('3000-Dotation en personnel'!$J:$J,"="&(TEXT(E$4,"mmm-aa")),'3000-Dotation en personnel'!$E:$E) -> 0 | F7: =SUMIF('3000-Dotation en personnel'!$J:$J,"="&(TEXT(F$4,"mmm-aa")),'3000-Dotation en personnel'!$E:$E) -> 0 | G7: =SUMIF('3000-Dotation en personnel'!$J:$J,"="&(TEXT(G$4,"mmm-aa")),'3000-Dotation en personnel'!$E:$E) -> 0 | H7: =SUMIF('3000-Dotation en personnel'!$J:$J,"="&(TEXT(H$4,"mmm-aa")),'3000-Dotation en personnel'!$E:$E) -> 0 | I7: =SUMIF('3000-Dotation en personnel'!$J:$J,"="&(TEXT(I$4,"mmm-aa")),'3000-Dotation en personnel'!$E:$E) -> 0 | J7: =SUMIF('3000-Dotation en personnel'!$J:$J,"="&(TEXT(J$4,"mmm-aa")),'3000-Dotation en personnel'!$E:$E) -> 0 | K7: =SUMIF('3000-Dotation en personnel'!$J:$J,"="&(TEXT(K$4,"mmm-aa")),'3000-Dotation en personnel'!$E:$E) -> 0 | L7: =SUMIF('3000-Dotation en personnel'!$J:$J,"="&(TEXT(L$4,"mmm-aa")),'3000-Dotation en personnel'!$E:$E) -> 0 | M7: =SUMIF('3000-Dotation en personnel'!$J:$J,"="&(TEXT(M$4,"mmm-aa")),'3000-Dotation en personnel'!$E:$E) -> 0 | N7: =SUMIF('3000-Dotation en personnel'!$J:$J,"="&(TEXT(N$4,"mmm-aa")),'3000-Dotation en personnel'!$E:$E) -> 0 | O7: =SUM(Tableau2[Jan-06]+Tableau2[Fév-06]+Tableau2[Mar-06]+Tableau2[Avr-06]+Tableau2[Mai-06]+Tableau2[Juin-06]+Tableau2[Juil-06]+Tableau2[Août-06]+Tableau2[Sep-06]+Tableau2[Oct-06]+Tableau2[Nov-06]+Tableau2[Déc-06]) -> 0
A8: 4000 | B8: Équipement | C8: =SUMIF('4000-Équipement'!$J:$J,"="&(TEXT(C$4,"mmm-aa")),'4000-Équipement'!$E:$E) -> 1,854.00 € | D8: =SUMIF('4000-Équipement'!$J:$J,"="&(TEXT(D$4,"mmm-aa")),'4000-Équipement'!$E:$E) -> 0 | E8: =SUMIF('4000-Équipement'!$J:$J,"="&(TEXT(E$4,"mmm-aa")),'4000-Équipement'!$E:$E) -> 0 | F8: =SUMIF('4000-Équipement'!$J:$J,"="&(TEXT(F$4,"mmm-aa")),'4000-Équipement'!$E:$E) -> 0 | G8: =SUMIF('4000-Équipement'!$J:$J,"="&(TEXT(G$4,"mmm-aa")),'4000-Équipement'!$E:$E) -> 0 | H8: =SUMIF('4000-Équipement'!$J:$J,"="&(TEXT(H$4,"mmm-aa")),'4000-Équipement'!$E:$E) -> 0 | I8: =SUMIF('4000-Équipement'!$J:$J,"="&(TEXT(I$4,"mmm-aa")),'4000-Équipement'!$E:$E) -> 0 | J8: =SUMIF('4000-Équipement'!$J:$J,"="&(TEXT(J$4,"mmm-aa")),'4000-Équipement'!$E:$E) -> 0 | K8: =SUMIF('4000-Équipement'!$J:$J,"="&(TEXT(K$4,"mmm-aa")),'4000-Équipement'!$E:$E) -> 0 | L8: =SUMIF('4000-Équipement'!$J:$J,"="&(TEXT(L$4,"mmm-aa")),'4000-Équipement'!$E:$E) -> 0 | M8: =SUMIF('4000-Équipement'!$J:$J,"="&(TEXT(M$4,"mmm-aa")),'4000-Équipement'!$E:$E) -> 0 | N8: =SUMIF('4000-Équipement'!$J:$J,"="&(TEXT(N$4,"mmm-aa")),'4000-Équipement'!$E:$E) -> 0 | O8: =SUM(Tableau2[Jan-06]+Tableau2[Fév-06]+Tableau2[Mar-06]+Tableau2[Avr-06]+Tableau2[Mai-06]+Tableau2[Juin-06]+Tableau2[Juil-06]+Tableau2[Août-06]+Tableau2[Sep-06]+Tableau2[Oct-06]+Tableau2[Nov-06]+Tableau2[Déc-06]) -> 1,854.00 €
A9: 5000 | B9: Autre | C9: =SUMIF('5000-Autre'!$J:$J,"="&(TEXT(C$4,"mmm-aa")),'5000-Autre'!$E:$E) -> 35.60 € | D9: =SUMIF('5000-Autre'!$J:$J,"="&(TEXT(D$4,"mmm-aa")),'5000-Autre'!$E:$E) -> 0 | E9: =SUMIF('5000-Autre'!$J:$J,"="&(TEXT(E$4,"mmm-aa")),'5000-Autre'!$E:$E) -> 0 | F9: =SUMIF('5000-Autre'!$J:$J,"="&(TEXT(F$4,"mmm-aa")),'5000-Autre'!$E:$E) -> 0 | G9: =SUMIF('5000-Autre'!$J:$J,"="&(TEXT(G$4,"mmm-aa")),'5000-Autre'!$E:$E) -> 0 | H9: =SUMIF('5000-Autre'!$J:$J,"="&(TEXT(H$4,"mmm-aa")),'5000-Autre'!$E:$E) -> 0 | I9: =SUMIF('5000-Autre'!$J:$J,"="&(TEXT(I$4,"mmm-aa")),'5000-Autre'!$E:$E) -> 0 | J9: =SUMIF('5000-Autre'!$J:$J,"="&(TEXT(J$4,"mmm-aa")),'5000-Autre'!$E:$E) -> 0 | K9: =SUMIF('5000-Autre'!$J:$J,"="&(TEXT(K$4,"mmm-aa")),'5000-Autre'!$E:$E) -> 0 | L9: =SUMIF('5000-Autre'!$J:$J,"="&(TEXT(L$4,"mmm-aa")),'5000-Autre'!$E:$E) -> 0 | M9: =SUMIF('5000-Autre'!$J:$J,"="&(TEXT(M$4,"mmm-aa")),'5000-Autre'!$E:$E) -> 0 | N9: =SUMIF('5000-Autre'!$J:$J,"="&(TEXT(N$4,"mmm-aa")),'5000-Autre'!$E:$E) -> 0 | O9: =SUM(Tableau2[Jan-06]+Tableau2[Fév-06]+Tableau2[Mar-06]+Tableau2[Avr-06]+Tableau2[Mai-06]+Tableau2[Juin-06]+Tableau2[Juil-06]+Tableau2[Août-06]+Tableau2[Sep-06]+Tableau2[Oct-06]+Tableau2[Nov-06]+Tableau2[Déc-06]) -> 35.60 €
A10: Total | C10: =SUBTOTAL(109,Tableau2[Jan-06]) -> 2,894.87 € | D10: =SUBTOTAL(109,Tableau2[Fév-06]) -> 0 | E10: =SUBTOTAL(109,Tableau2[Mar-06]) -> 0 | F10: =SUBTOTAL(109,Tableau2[Avr-06]) -> 0 | G10: =SUBTOTAL(109,Tableau2[Mai-06]) -> 0 | H10: =SUBTOTAL(109,Tableau2[Juin-06]) -> 0 | I10: =SUBTOTAL(109,Tableau2[Juil-06]) -> 0 | J10: =SUBTOTAL(109,Tableau2[Août-06]) -> 0 | K10: =SUBTOTAL(109,Tableau2[Sep-06]) -> 0 | L10: =SUBTOTAL(109,Tableau2[Oct-06]) -> 0 | M10: =SUBTOTAL(109,Tableau2[Nov-06]) -> 0 | N10: =SUBTOTAL(109,Tableau2[Déc-06]) -> 0 | O10: =SUBTOTAL(109,Tableau2[Total 2006]) -> 2,894.87 €

Sheet 1000-Bureau
A1: G/L - Frais | B1: Date de facture | C1: N° de facture | D1: Demandée par | E1: Montant du chèque | F1: Nom du bénéficiaire | G1: Utilisation du chèque | H1: Méthode de distribution | I1: Date de dépôt | J1: Champ clé construit
A2: 1000 | B2: 2006-01-15 | C2: 1 | D2: André Martin | E2: 100.00 € | F2: Consolidated Messenger | G2: CD-ROM vierges | H2: Crédit | I2: 2006-01-20 | J2: =TEXT(B2,"mmm-aa") -> Jan-aa
A3: 1000 | B3: 2006-02-07 | C3: 5 | D3: André Martin | E3: 50.00 € | F3: Consolidated Messenger | G3: Encre imprimante | H3: Crédit | I3: 2006-02-10 | J3: =TEXT(B3,"mmm-aa") -> Feb-aa
A4: 1000 | B4: 2006-02-15 | C4: 10 | D4: André Martin | E4: 275.00 € | F4: Acme | G4: Services administratifs | H4: Crédit | I4: 2006-02-10 | J4: =TEXT(B4,"mmm-aa") -> Feb-aa
A5: 1000 | J5: =TEXT(B5,"mmm-aa") -> Jan-aa
A6: Total | E6: =SUBTOTAL(109,Tableau3[Montant du chèque]) -> 425.00 €

Sheet 2000-Magasin
A1: G/L - Frais | B1: Date de facture | C1: N° de facture | D1: Demandée par | E1: Montant du chèque | F1: Nom du bénéficiaire | G1: Utilisation du chèque | H1: Méthode de distribution | I1: Date de dépôt | J1: Champ clé construit
A2: 2000 | B2: 2006-01-17 | C2: 2 | D2: Marc Faeber | E2: 550.00 € | F2: Fabrikam, Inc. | G2: Remplacer la fenêtre du magasin | H2: Crédit | I2: 2006-01-20 | J2: =TEXT(B2,"mmm-aa") -> Jan-aa
A3: 2000 | B3: 2006-01-19 | C3: 3 | D3: Marc Faeber | E3: 355.27 € | F3: A. Datum Corporation | G3: Nouvelle caisse enregistreuse | H3: Crédit | I3: 2006-01-20 | J3: =TEXT(B3,"mmm-aa") -> Jan-aa
A4: 2000 | J4: =TEXT(B4,"mmm-aa") -> Jan-aa
A5: Total | E5: =SUBTOTAL(109,Tableau4[Montant du chèque]) -> 905.27 €

Sheet 3000-Dotation en personnel
A1: G/L - Frais | B1: Date de facture | C1: N° de facture | D1: Demandée par | E1: Montant du chèque | F1: Nom du bénéficiaire | G1: Utilisation du chèque | H1: Méthode de distribution | I1: Date de dépôt | J1: Champ clé construit
A2: 3000 | B2: 2006-02-10 | C2: 6 | D2: Marc Durant | E2: 2,500.00 € | F2: Institut d'arts graphiques | G2: Rédacteur de contrat | H2: Chèque | I2: 2006-02-20 | J2: =TEXT(B2,"mmm-aa") -> Feb-aa
A3: 3000 | B3: 2006-02-15 | C3: 11 | D3: Sandeep Kaliyath | E3: 15,000.00 € | F3: Adventure Works | G3: Rédacteur de contrat | H3: Chèque | I3: 2006-02-20 | J3: =TEXT(B3,"mmm-aa") -> Feb-aa
A4: 3000 | J4: =TEXT(B4,"mmm-aa") -> Jan-aa
A5: Total | E5: =SUBTOTAL(109,Tableau5[Montant du chèque]) -> 17,500.00 €

Sheet 4000-Équipement
A1: G/L - Frais | B1: Date de facture | C1: N° de facture | D1: Demandée par | E1: Montant du chèque | F1: Nom du bénéficiaire | G1: Utilisation du chèque | H1: Méthode de distribution | I1: Date de dépôt | J1: Champ clé construit
A2: 4000 | B2: 2006-01-25 | C2: 5 | D2: Jean Dupont | E2: 1,854.00 € | F2: Trey Research | G2: Nouvel ordinateur portable | H2: Crédit | I2: 2006-01-25 | J2: =TEXT(B2,"mmm-aa") -> Jan-aa
A3: 4000 | J3: =TEXT(B3,"mmm-aa") -> Jan-aa
A4: Total | E4: =SUBTOTAL(109,Tableau6[Montant du chèque]) -> 1,854.00 €

Sheet 5000-Autre
A1: G/L - Frais | B1: Date de facture | C1: N° de facture | D1: Demandée par | E1: Montant du chèque | F1: Nom du bénéficiaire | G1: Utilisation du chèque | H1: Méthode de distribution | I1: Date de dépôt | J1: Champ clé construit
A2: 5000 | B2: 2006-01-23 | C2: 4 | D2: Bob Gage | E2: 35.60 € | F2: Bob Gage | G2: Frais de taxi | H2: Chèque | I2: 2006-01-23 | J2: =TEXT(B2,"mmm-aa") -> Jan-aa
A3: 5000 | J3: =TEXT(B3,"mmm-aa") -> Jan-aa
A4: Total | E4: =SUBTOTAL(109,Tableau7[Montant du chèque]) -> 35.60 €
